fUST/lending_fUST_20250403
["ID","MTS","AMOUNT","RATE_DAILY","PERIOD"]
[357072400,1743688248099,-502.97515352,0.00016438,2]
[357072402,1743688248109,-500.0,0.00016438,2]
[357072404,1743688248119,-500.0,0.00016438,2]
[357072406,1743688248130,-503.97263541,0.00016438,2]
[357072408,1743688248140,-500.0,0.00016438,2]
[357072410,1743688248150,-500.0,0.00016438,2]
[357072412,1743688248161,-500.0,0.00016438,2]
[357072414,1743688248175,-500.0,0.00016438,2]
[357072416,1743688248192,-500.0,0.00016438,2]
[357072418,1743688248203,-386.13052363,0.00016438,2]
[357072420,1743688248213,-500.0,0.00016438,2]
[357072422,1743688248226,-500.0,0.00016438,2]
[357072424,1743688248238,-500.0,0.00016438,2]
[357072426,1743688248248,-500.0,0.00016438,2]
[357072428,1743688248259,-501.64042201,0.00016438,2]
[357072430,1743688248270,-500.0,0.00016438,2]
[357072432,1743688248280,-500.0,0.00016438,2]
[357072434,1743688248290,-505.05804045,0.00016438,2]
[357072436,1743688248300,-512.2726452,0.00016438,2]
[357072438,1743688248314,-500.0,0.00016438,2]
[357072440,1743688248334,-502.33325303,0.00016438,2]
[357072442,1743688248344,-500.0,0.00016438,2]
[357072444,1743688248354,-500.0,0.00016438,2]
[357072446,1743688248364,-500.0,0.00016438,2]
[357072448,1743688248374,-500.0,0.00016438,2]
[357072450,1743688248385,-500.0,0.00016438,2]
[357072452,1743688248395,-500.0,0.00016438,2]
[357072454,1743688248405,-500.0,0.00016438,2]
[357072456,1743688248415,-580.67,0.00016438,2]
[357072458,1743688248424,-506.0421423,0.00016438,2]
[357072460,1743688248434,-502.47967185,0.00016438,2]
[357072462,1743688248443,-508.39681989,0.00016438,2]
[357072464,1743688248453,-500.0,0.00016438,2]
[357072466,1743688248462,-500.0,0.00016438,2]
[357072468,1743688248472,-500.0,0.00016438,2]
[357072470,1743688248482,-503.76146922,0.00016438,2]
[357072472,1743688248492,-500.0,0.00016438,2]
[357072474,1743688248501,-500.0,0.00016438,2]
[357072476,1743688248511,-506.29455721,0.00016438,2]
[357072478,1743688248520,-500.98504297,0.00016438,2]
[357072480,1743688248530,-500.0,0.00016438,2]
[357072482,1743688248540,-500.71452574,0.00016438,2]
[357072484,1743688248550,-500.0,0.00016438,2]
[357072486,1743688248560,-500.75861776,0.00016438,2]
[357072488,1743688248569,-500.0,0.00016438,2]
[357072490,1743688248579,-517.49595572,0.00016438,2]
[357072492,1743688248588,-500.0,0.00016438,2]
[357072494,1743688248598,-505.46620183,0.00016438,2]
[357072496,1743688248607,-500.0,0.00016438,2]
[357072498,1743688248617,-500.0,0.00016438,2]
[357072500,1743688248626,-500.0,0.00016438,2]
[357072502,1743688248635,-500.0,0.00016438,2]
[357072504,1743688248645,-500.0,0.00016438,2]
[357072506,1743688248655,-500.0,0.00016438,2]
[357072508,1743688248664,-520.54915808,0.00016438,2]
[357072510,1743688248673,-500.0,0.00016438,2]
[357072512,1743688248683,-505.04847185,0.00016438,2]
[357072514,1743688248692,-545.67487062,0.00016438,2]
[357072516,1743688248701,-500.0,0.00016438,2]
[357072518,1743688248711,-500.0,0.00016438,2]
[357072520,1743688248720,-581.78565339,0.00016438,2]
[357072522,1743688248730,-500.0,0.00016438,2]
[357072524,1743688248739,-500.0,0.00016438,2]
[357072526,1743688248748,-500.0,0.00016438,2]
[357072528,1743688248759,-500.0,0.00016438,2]
[357072530,1743688248770,-500.0,0.00016438,2]
[357072532,1743688248780,-500.0,0.00016438,2]
[357072534,1743688248791,-500.0,0.00016438,2]
[357072536,1743688248802,-500.0,0.00016438,2]
[357072538,1743688248812,-500.0,0.00016438,2]
[357072540,1743688248825,-524.13680157,0.00016438,2]
[357072542,1743688248835,-500.0,0.00016438,2]
[357072544,1743688248847,-505.27961249,0.00016438,2]
[357072546,1743688248858,-500.0,0.00016438,2]
[357072548,1743688248871,-507.52666765,0.00016438,2]
[357072550,1743688248881,-500.0,0.00016438,2]
[357072553,1743688248891,-505.165478,0.00016438,2]
[357072555,1743688248901,-237.40087785,0.00016438,2]
[357072557,1743688248911,-500.0,0.00016438,2]
[357072559,1743688248921,-500.0,0.00016438,2]
[357072561,1743688248932,-502.73278819,0.00016438,2]
[357072563,1743688248942,-505.19634291,0.00016438,2]
[357072565,1743688248951,-500.0,0.00016438,2]
[357072567,1743688248961,-500.0,0.00016438,2]
[357072569,1743688248975,-500.0,0.00016438,2]
[357072571,1743688248986,-500.0,0.00016438,2]
[357072573,1743688248995,-500.0,0.00016438,2]
[357072575,1743688249006,-500.0,0.00016438,2]
[357072577,1743688249016,-500.0,0.00016438,2]
[357072579,1743688249026,-500.0,0.00016438,2]
[357072581,1743688249036,-500.0,0.00016438,2]
[357072583,1743688249046,-500.0,0.00016438,2]
[357072585,1743688249056,-500.0,0.00016438,2]
[357072587,1743688249066,-502.48965701,0.00016438,2]
[357072589,1743688249076,-295.13418709,0.00016438,2]
[357072591,1743688249086,-500.0,0.00016438,2]
[357072593,1743688249096,-500.0,0.00016438,2]
[357072595,1743688249106,-500.0,0.00016438,2]
[357072597,1743688249116,-543.34581033,0.00016438,2]
[357072599,1743688249126,-500.0,0.00016438,2]
[357072602,1743688249136,-500.0,0.00016438,2]
[357072606,1743688249179,-500.0,0.00016438,2]
[357072609,1743688249190,-500.0,0.00016438,2]
[357072610,1743688249200,-500.0,0.00016438,2]
[357072611,1743688249210,-500.0,0.00016438,2]
[357072612,1743688249219,-503.26475458,0.00016438,2]
[357072613,1743688249229,-501.71623983,0.00016438,2]
[357072614,1743688249239,-500.0,0.00016438,2]
[357072615,1743688249248,-500.0,0.00016438,2]
[357072616,1743688249258,-500.0,0.00016438,2]
[357072617,1743688249267,-500.82133275,0.00016438,2]
[357072618,1743688249276,-500.0,0.00016438,2]
[357072619,1743688249285,-501.96458437,0.00016438,2]
[357072620,1743688249295,-500.0,0.00016438,2]
[357072621,1743688249304,-624.78,0.00016438,2]
[357072622,1743688249314,-503.82725584,0.00016438,2]
[357072623,1743688249324,-500.0,0.00016438,2]
[357072624,1743688249334,-500.0,0.00016438,2]
[357072625,1743688249344,-500.0,0.00016438,2]
[357072626,1743688249353,-500.0,0.00016438,2]
[357072627,1743688249363,-188.45284657,0.00016438,2]
[357072628,1743688249372,-500.0,0.00016438,2]
[357072629,1743688249382,-500.0,0.00016438,2]
[357072630,1743688249391,-500.0,0.00016438,2]
[357072631,1743688249401,-503.42103792,0.00016438,2]
[357072632,1743688249410,-500.0,0.00016438,2]
[357072633,1743688249422,-500.0,0.00016438,2]
[357072634,1743688249432,-500.0,0.00016438,2]
[357072635,1743688249443,-500.0,0.00016438,2]
[357072636,1743688249453,-501.03773385,0.00016438,2]
[357072637,1743688249463,-500.0,0.00016438,2]
[357072638,1743688249472,-500.0,0.00016438,2]
[357072639,1743688249483,-500.0,0.00016438,2]
[357072640,1743688249494,-500.0,0.00016438,2]
[357072641,1743688249504,-505.95778649,0.00016438,2]
[357072642,1743688249515,-503.23114953,0.00016438,2]
[357072643,1743688249527,-500.0,0.00016438,2]
[357072644,1743688249537,-500.0,0.00016438,2]
[357072645,1743688249547,-501.46316483,0.00016438,2]
[357072646,1743688249556,-561.97854662,0.00016438,2]
[357072647,1743688249566,-500.0,0.00016438,2]
[357072648,1743688249576,-508.94733186,0.00016438,2]
[357072649,1743688249586,-1009.68453614,0.00016438,2]
[357072650,1743688249596,-171.48170575,0.00016438,2]
[357072651,1743688249612,-329.43637867,0.00016438,2]
[357072652,1743688249622,-30.81362111,0.00016438,2]
[357072662,1743688490651,379.22,0.00010959,2]
[357072663,1743688501257,861.89,0.00010959,2]
[357072699,1743689438598,-497.894363,0.00014763,2]
[357072700,1743689438609,-300.0,0.00014945,2]
[357072701,1743689438618,-550.14843388,0.00014946,2]
[357072702,1743689438638,-446.36782437,0.00014946,2]
[357072711,1743689440833,-1045.42938353,0.00014946,2]
[357072712,1743689440934,-2218.15027819,0.00014946,2]
[357072723,1743689443749,-20639.90408003,0.00014946,2]
[357072724,1743689443759,-346.3849588,0.00015035,2]
[357072725,1743689443769,-250.0,0.00015114,2]
[357072726,1743689443779,-250.0,0.00015135,2]
[357072727,1743689443788,-19890.1528033,0.00015486,2]
[357072728,1743689443798,-2060.0,0.00015529,2]
[357072729,1743689443807,-166.4520281,0.0001553,2]
[357072730,1743689443817,-500.0,0.00016208,2]
[357072731,1743689443826,-500.0,0.00016208,2]
[357072732,1743689443835,-500.0,0.00016208,2]
[357072733,1743689443845,-500.0,0.00016208,2]
[357072734,1743689443855,-500.0,0.00016208,2]
[357072735,1743689443865,-500.0,0.00016208,2]
[357072736,1743689443874,-500.0,0.00016208,2]
[357072737,1743689443884,-500.0,0.00016208,2]
[357072738,1743689443895,-500.0,0.00016208,2]
[357072739,1743689443904,-544.68565031,0.00016208,2]
[357072740,1743689443914,-500.0,0.00016208,2]
[357072741,1743689443923,-500.0,0.00016208,2]
[357072742,1743689443934,-500.0,0.00016208,2]
[357072743,1743689443943,-500.0,0.00016208,2]
[357072744,1743689443953,-500.0,0.00016208,2]
[357072745,1743689443962,-500.0,0.00016208,2]
[357072746,1743689443972,-500.0,0.00016208,2]
[357072747,1743689443981,-500.0,0.00016208,2]
[357072748,1743689443991,-500.0,0.00016208,2]
[357072749,1743689444001,-500.0,0.00016208,2]
[357072750,1743689444010,-500.0,0.00016208,2]
[357072751,1743689444020,-500.0,0.00016208,2]
[357072752,1743689444030,-500.0,0.00016208,2]
[357072753,1743689444039,-500.0,0.00016208,2]
[357072754,1743689444049,-500.0,0.00016208,2]
[357072755,1743689444058,-500.0,0.00016208,2]
[357072756,1743689444068,-1395.57699216,0.00016209,2]
[357072757,1743689444077,-50000.0,0.00016209,2]
[357072758,1743689444087,-500.0,0.0001622,2]
[357072759,1743689444096,-412.33633918,0.0001622,2]
[357072760,1743689444106,-1395.57699216,0.00016221,2]
[357072761,1743689444115,-1395.57699216,0.00016233,2]
[357072762,1743689444125,-1395.57699216,0.00016245,2]
[357072763,1743689444137,-1395.57699216,0.00016257,2]
[357072764,1743689444146,-151.0,0.00016328,2]
[357072765,1743689444156,-370000.0,0.00016338,2]
[357072766,1743689444166,-420.0,0.00016357,2]
[357072767,1743689444176,-508.33719497,0.00016438,2]
[357072768,1743689444186,-500.0,0.00016438,2]
[357072769,1743689444195,-500.0,0.00016438,2]
[357072770,1743689444205,-500.0,0.00016438,2]
[357072771,1743689444215,-500.90697899,0.00016438,2]
[357072772,1743689444225,-504.26940244,0.00016438,2]
[357072773,1743689444235,-507.00686904,0.00016438,2]
[357072774,1743689444244,-500.0,0.00016438,2]
[357072775,1743689444254,-509.04539607,0.00016438,2]
[357072776,1743689444264,-500.0,0.00016438,2]
[357072777,1743689444274,-500.0,0.00016438,2]
[357072778,1743689444284,-500.0,0.00016438,2]
[357072779,1743689444294,-500.0,0.00016438,2]
[357072780,1743689444304,-500.0,0.00016438,2]
[357072781,1743689444313,-500.0,0.00016438,2]
[357072782,1743689444323,-504.548319,0.00016438,2]
[357072783,1743689444332,-500.0,0.00016438,2]
[357072784,1743689444342,-500.0,0.00016438,2]
[357072785,1743689444351,-500.0,0.00016438,2]
[357072786,1743689444362,-500.0,0.00016438,2]
[357072787,1743689444372,-500.0,0.00016438,2]
[357072788,1743689444382,-500.0,0.00016438,2]
[357072789,1743689444395,-500.0,0.00016438,2]
[357072790,1743689444404,-500.0,0.00016438,2]
[357072791,1743689444414,-500.0,0.00016438,2]
[357072792,1743689444425,-500.0,0.00016438,2]
[357072793,1743689444435,-370.89604485,0.00016438,2]
[357072794,1743689444444,-500.0,0.00016438,2]
[357072795,1743689444454,-500.0,0.00016438,2]
[357072796,1743689444464,-500.0,0.00016438,2]
[357072797,1743689444474,-500.0,0.00016438,2]
[357072798,1743689444483,-351.61284796,0.00016438,2]
[357072799,1743689444493,-500.0,0.00016438,2]
[357072800,1743689444504,-500.0,0.00016438,2]
[357072801,1743689444514,-506.52820359,0.00016438,2]
[357072802,1743689444524,-160.22428523,0.00016438,2]
[357072803,1743689444534,-500.0,0.00016438,2]
[357072804,1743689444547,-507.01493951,0.00016438,2]
[357072805,1743689444557,-505.6773769,0.00016438,2]
[357072806,1743689444566,-539.10432338,0.00016438,2]
[357072807,1743689444576,-506.13313127,0.00016438,2]
[357072808,1743689444587,-500.0,0.00016438,2]
[357072809,1743689444596,-510.63393009,0.00016438,2]
[357072810,1743689444606,-500.0,0.00016438,2]
[357072811,1743689444615,-500.0,0.00016438,2]
[357072812,1743689444626,-504.41079883,0.00016438,2]
[357072813,1743689444635,-500.0,0.00016438,2]
[357072814,1743689444649,-500.0,0.00016438,2]
[357072815,1743689444659,-500.0,0.00016438,2]
[357072816,1743689444668,-500.0,0.00016438,2]
[357072817,1743689444678,-505.40843161,0.00016438,2]
[357072818,1743689444688,-500.0,0.00016438,2]
[357072819,1743689444698,-500.0,0.00016438,2]
[357072820,1743689444708,-538.04088428,0.00016438,2]
[357072821,1743689444718,-630.85601477,0.00016438,2]
[357072822,1743689444727,-500.0,0.00016438,2]
[357072823,1743689444737,-501.66431859,0.00016438,2]
[357072824,1743689444747,-500.0,0.00016438,2]
[357072825,1743689444756,-500.0,0.00016438,2]
[357072826,1743689444766,-500.0,0.00016438,2]
[357072827,1743689444776,-500.0,0.00016438,2]
[357072828,1743689444786,-500.0,0.00016438,2]
[357072829,1743689444795,-500.0,0.00016438,2]
[357072830,1743689444805,-500.0,0.00016438,2]
[357072831,1743689444815,-500.0,0.00016438,2]
[357072832,1743689444824,-500.0,0.00016438,2]
[357072833,1743689444834,-500.0,0.00016438,2]
[357072834,1743689444843,-500.0,0.00016438,2]
[357072835,1743689444852,-500.0,0.00016438,2]
[357072836,1743689444862,-500.0,0.00016438,2]
[357072837,1743689444872,-500.0,0.00016438,2]
[357072838,1743689444881,-500.0,0.00016438,2]
[357072839,1743689444894,-500.0,0.00016438,2]
[357072840,1743689444903,-500.0,0.00016438,2]
[357072841,1743689444913,-500.0,0.00016438,2]
[357072842,1743689444923,-500.0,0.00016438,2]
[357072843,1743689444933,-500.0,0.00016438,2]
[357072844,1743689444943,-500.0,0.00016438,2]
[357072845,1743689444952,-500.0,0.00016438,2]
[357072846,1743689444962,-500.0,0.00016438,2]
[357072847,1743689444972,-501.13339541,0.00016438,2]
[357072848,1743689444982,-500.0,0.00016438,2]
[357072849,1743689444992,-500.0,0.00016438,2]
[357072850,1743689445002,-504.45026182,0.00016438,2]
[357072851,1743689445011,-500.0,0.00016438,2]
[357072852,1743689445021,-500.0,0.00016438,2]
[357072853,1743689445030,-500.0,0.00016438,2]
[357072854,1743689445041,-500.0,0.00016438,2]
[357072855,1743689445050,-500.0,0.00016438,2]
[357072856,1743689445060,-500.0,0.00016438,2]
[357072857,1743689445069,-500.0,0.00016438,2]
[357072858,1743689445078,-500.0,0.00016438,2]
[357072859,1743689445088,-500.0,0.00016438,2]
[357072860,1743689445098,-511.6862658,0.00016438,2]
[357072861,1743689445108,-500.0,0.00016438,2]
[357072862,1743689445118,-606.20986561,0.00016438,2]
[357072863,1743689445128,-500.0,0.00016438,2]
[357072864,1743689445139,-169.10401019,0.00016438,2]
[357072865,1743689445149,-500.0,0.00016438,2]
[357072866,1743689445159,-500.0,0.00016438,2]
[357072867,1743689445169,-500.0,0.00016438,2]
[357072868,1743689445179,-500.0,0.00016438,2]
[357072869,1743689445189,-500.0,0.00016438,2]
[357072870,1743689445199,-636.5336164,0.00016438,2]
[357072871,1743689445208,-508.7209118,0.00016438,2]
[357072872,1743689445218,-507.81891312,0.00016438,2]
[357072873,1743689445227,-500.0,0.00016438,2]
[357072874,1743689445237,-500.0,0.00016438,2]
[357072875,1743689445246,-500.0,0.00016438,2]
[357072876,1743689445256,-500.0,0.00016438,2]
[357072877,1743689445265,-500.0,0.00016438,2]
[357072878,1743689445275,-500.0,0.00016438,2]
[357072879,1743689445285,-500.0,0.00016438,2]
[357072880,1743689445295,-509.53079667,0.00016438,2]
[357072881,1743689445304,-469.18637889,0.00016438,2]
[357072882,1743689445314,-968.57,0.00016438,2]
[357072883,1743689445323,-515.38,0.00016438,2]
[357072884,1743689445332,-500.0,0.00016438,2]
[357072885,1743689445342,-500.0,0.00016438,2]
[357072886,1743689445352,-500.0,0.00016438,2]
[357072887,1743689445361,-500.0,0.00016438,2]
[357072888,1743689445370,-540.0,0.00016438,2]
[357072889,1743689445380,-500.0,0.00016438,2]
[357072890,1743689445392,-500.0,0.00016438,2]
[357072891,1743689445402,-500.0,0.00016438,2]
[357072892,1743689445412,-507.12825954,0.00016438,2]
[357072893,1743689445422,-481.53185672,0.00016438,2]
[357072894,1743689445432,-500.0,0.00016438,2]
[357072895,1743689445441,-500.0,0.00016438,2]
[357072896,1743689445451,-500.0,0.00016438,2]
[357072897,1743689445460,-500.65,0.00016438,2]
[357072898,1743689445470,-500.0,0.00016438,2]
[357072899,1743689445480,-422.95293451,0.00016438,2]
[357072900,1743689445489,-500.0,0.00016438,2]
[357072901,1743689445499,-500.0,0.00016438,2]
[357072902,1743689445509,-500.0,0.00016438,2]
[357072903,1743689445519,-508.33087621,0.00016438,2]
[357072904,1743689445529,-500.0,0.00016438,2]
[357072905,1743689445540,-500.0,0.00016438,2]
[357072906,1743689445550,-500.0,0.00016438,2]
[357072907,1743689445562,-500.0,0.00016438,2]
[357072908,1743689445572,-502.17357889,0.00016438,2]
[357072909,1743689445582,-502.64083178,0.00016438,2]
[357072910,1743689445593,-500.0,0.00016438,2]
[357072911,1743689445602,-543.04,0.00016438,2]
[357072912,1743689445612,-500.0,0.00016438,2]
[357072913,1743689445621,-500.0,0.00016438,2]
[357072914,1743689445633,-500.0,0.00016438,2]
[357072915,1743689445646,-500.0,0.00016438,2]
[357072916,1743689445655,-461.28221562,0.00016438,2]
[357072917,1743689445665,-546.44794779,0.00016438,2]
[357072918,1743689445675,-500.0,0.00016438,2]
[357072919,1743689445684,-996.45,0.00016438,2]
[357072920,1743689445694,-549.74,0.00016438,2]
[357072921,1743689445704,-500.0,0.00016438,2]
[357072922,1743689445713,-500.0,0.00016438,2]
[357072923,1743689445724,-500.0,0.00016438,2]
[357072924,1743689445733,-1689.55,0.00016438,2]
[357072925,1743689445743,-500.0,0.00016438,2]
[357072926,1743689445752,-500.0,0.00016438,2]
[357072927,1743689445761,-512.1794104,0.00016438,2]
[357072928,1743689445774,-500.0,0.00016438,2]
[357072929,1743689445785,-500.0,0.00016438,2]
[357072930,1743689445794,-500.0,0.00016438,2]
[357072931,1743689445803,-500.0,0.00016438,2]
[357072932,1743689445812,-573.74,0.00016438,2]
[357072933,1743689445823,-500.0,0.00016438,2]
[357072934,1743689445832,-504.42151005,0.00016438,2]
[357072935,1743689445842,-563.47608262,0.00016438,2]
[357072936,1743689445853,-500.0,0.00016438,2]
[357072937,1743689445863,-500.0,0.00016438,2]
[357072938,1743689445873,-505.27610033,0.00016438,2]
[357072939,1743689445882,-500.0,0.00016438,2]
[357072940,1743689445896,-507.10009161,0.00016438,2]
[357072941,1743689445906,-500.0,0.00016438,2]
[357072942,1743689445915,-501.76367653,0.00016438,2]
[357072943,1743689445925,-500.0,0.00016438,2]
[357072944,1743689445935,-500.0,0.00016438,2]
[357072945,1743689445944,-509.72188366,0.00016438,2]
[357072946,1743689445954,-500.0,0.00016438,2]
[357072947,1743689445963,-510.53109317,0.00016438,2]
[357072948,1743689445973,-500.0,0.00016438,2]
[357072949,1743689445983,-500.0,0.00016438,2]
[357072950,1743689445993,-500.0,0.00016438,2]
[357072951,1743689446003,-500.0,0.00016438,2]
[357072952,1743689446013,-500.0,0.00016438,2]
[357072954,1743689446023,-1130.61,0.00016438,2]
[357072955,1743689446032,-287.94324776,0.00016438,2]
[357072957,1743689446042,-500.0,0.00016438,2]
[357072958,1743689446052,-510.40937497,0.00016438,2]
[357072959,1743689446062,-500.0,0.00016438,2]
[357072960,1743689446072,-500.0,0.00016438,2]
[357072961,1743689446082,-500.0,0.00016438,2]
[357072962,1743689446092,-500.0,0.00016438,2]
[357072963,1743689446102,-500.0,0.00016438,2]
[357072964,1743689446112,-500.0,0.00016438,2]
[357072969,1743689446282,-428.70023585,0.00016438,2]
[357072971,1743689446293,-503.91275075,0.00016438,2]
[357072973,1743689446303,-501.29944588,0.00016438,2]
[357072975,1743689446313,-500.0,0.00016438,2]
[357072977,1743689446323,-500.0,0.00016438,2]
[357072979,1743689446333,-504.63680461,0.00016438,2]
[357072981,1743689446343,-500.0,0.00016438,2]
[357072983,1743689446352,-500.0,0.00016438,2]
[357072985,1743689446363,-500.0,0.00016438,2]
[357072987,1743689446374,-550.34883547,0.00016438,2]
[357072989,1743689446383,-507.08292592,0.00016438,2]
[357072991,1743689446394,-500.0,0.00016438,2]
[357072992,1743689446404,-500.0,0.00016438,2]
[357072993,1743689446414,-541.97,0.00016438,2]
[357072995,1743689446424,-500.0,0.00016438,2]
[357072997,1743689446434,-500.0,0.00016438,2]
[357072998,1743689446443,-500.0,0.00016438,2]
[357072999,1743689446452,-500.0,0.00016438,2]
[357073000,1743689446464,-500.0,0.00016438,2]
[357073001,1743689446473,-262.38843004,0.00016438,2]
[357073002,1743689446483,-643.81415094,0.00016438,2]
[357073003,1743689446492,-555.9422003,0.00016438,2]
[357073004,1743689446503,-500.0,0.00016438,2]
[357073005,1743689446512,-500.0,0.00016438,2]
[357073006,1743689446522,-500.0,0.00016438,2]
[357073007,1743689446531,-500.0,0.00016438,2]
[357073008,1743689446542,-500.0,0.00016438,2]
[357073010,1743689446554,-500.0,0.00016438,2]
[357073011,1743689446565,-577.7,0.00016438,2]
[357073013,1743689446575,-500.0,0.00016438,2]
[357073014,1743689446584,-500.0,0.00016438,2]
[357073015,1743689446594,-500.0,0.00016438,2]
[357073016,1743689446604,-500.0,0.00016438,2]
[357073017,1743689446613,-500.0,0.00016438,2]
[357073018,1743689446623,-500.0,0.00016438,2]
[357073019,1743689446633,-500.0,0.00016438,2]
[357073020,1743689446645,-500.0,0.00016438,2]
[357073021,1743689446655,-500.0,0.00016438,2]
[357073022,1743689446664,-500.0,0.00016438,2]
[357073023,1743689446673,-500.0,0.00016438,2]
[357073024,1743689446683,-500.0,0.00016438,2]
[357073025,1743689446693,-500.0,0.00016438,2]
[357073026,1743689446702,-500.0,0.00016438,2]
[357073027,1743689446712,-500.0,0.00016438,2]
[357073028,1743689446722,-500.0,0.00016438,2]
[357073029,1743689446731,-500.0,0.00016438,2]
[357073030,1743689446741,-500.0,0.00016438,2]
[357073031,1743689446751,-500.0,0.00016438,2]
[357073032,1743689446760,-500.0,0.00016438,2]
[357073033,1743689446770,-500.0,0.00016438,2]
[357073034,1743689446780,-500.0,0.00016438,2]
[357073035,1743689446789,-500.0,0.00016438,2]
[357073036,1743689446799,-229.08369839,0.00016438,2]
[357073037,1743689446808,-500.0,0.00016438,2]
[357073038,1743689446818,-500.0,0.00016438,2]
[357073039,1743689446828,-500.0,0.00016438,2]
[357073040,1743689446838,-500.0,0.00016438,2]
[357073041,1743689446848,-500.0,0.00016438,2]
[357073042,1743689446857,-500.0,0.00016438,2]
[357073043,1743689446867,-500.0,0.00016438,2]
[357073044,1743689446877,-500.0,0.00016438,2]
[357073045,1743689446886,-225.83,0.00016438,2]
[357073046,1743689446898,-500.0,0.00016438,2]
[357073047,1743689446907,-1054.03,0.00016438,2]
[357073049,1743689446917,-2569.94,0.00016438,2]
[357073050,1743689446927,-506.60208603,0.00016438,2]
[357073051,1743689446937,-500.0,0.00016438,2]
[357073052,1743689446949,-500.0,0.00016438,2]
[357073053,1743689446959,-503.64283845,0.00016438,2]
[357073054,1743689446969,-1469.92,0.00016438,2]
[357073055,1743689446978,-500.0,0.00016438,2]
[357073056,1743689446987,-533.22573824,0.00016438,2]
[357073057,1743689446995,-928.39,0.00016438,2]
[357073058,1743689447005,-500.0,0.00016438,2]
[357073059,1743689447013,-500.0,0.00016438,2]
[357073060,1743689447022,-500.0,0.00016438,2]
[357073061,1743689447031,-500.0,0.00016438,2]
[357073062,1743689447041,-500.0,0.00016438,2]
[357073063,1743689447050,-500.0,0.00016438,2]
[357073064,1743689447059,-500.0,0.00016438,2]
[357073065,1743689447069,-500.0,0.00016438,2]
[357073066,1743689447079,-964.01,0.00016438,2]
[357073067,1743689447089,-500.0,0.00016438,2]
[357073068,1743689447102,-439.31253479,0.00016438,2]
[357073069,1743689447117,-500.0,0.00016438,2]
[357073070,1743689447127,-3120.34,0.00016438,2]
[357073071,1743689447137,-500.0,0.00016438,2]
[357073072,1743689447149,-500.0,0.00016438,2]
[357073073,1743689447159,-555.47,0.00016438,2]
[357073074,1743689447169,-500.0,0.00016438,2]
[357073075,1743689447178,-500.0,0.00016438,2]
[357073076,1743689447188,-500.0,0.00016438,2]
[357073077,1743689447198,-500.0,0.00016438,2]
[357073078,1743689447208,-500.0,0.00016438,2]
[357073079,1743689447217,-500.0,0.00016438,2]
[357073080,1743689447227,-500.0,0.00016438,2]
[357073081,1743689447237,-512.25245831,0.00016438,2]
[357073082,1743689447247,-500.0,0.00016438,2]
[357073083,1743689447256,-500.0,0.00016438,2]
[357073084,1743689447267,-500.0,0.00016438,2]
[357073085,1743689447277,-500.0,0.00016438,2]
[357073086,1743689447287,-888.11,0.00016438,2]
[357073087,1743689447296,-573.42,0.00016438,2]
[357073088,1743689447306,-197.78,0.00016438,2]
[357073089,1743689447317,-1105.84,0.00016438,2]
[357073090,1743689447327,-1172.6,0.00016438,2]